fUST/lending_fUST_20240224
["ID","MTS","AMOUNT","RATE_DAILY","PERIOD"]
[315051128,1708783838649,-500.0,0.00019452,2]
[315051129,1708783838659,-500.0,0.00019452,2]
[315051130,1708783838668,-667.49,0.00019452,2]
[315051131,1708783838677,-523.04,0.00019452,2]
[315051132,1708783838685,-4184.82,0.00019452,2]
[315051133,1708783838694,-2974.12,0.00019452,2]
[315051134,1708783838702,-500.0,0.00019452,2]
[315051135,1708783838711,-3420.18,0.00019452,2]
[315051136,1708783838720,-1485.58,0.00019452,2]
[315051137,1708783838729,-1101.19,0.00019452,2]
[315051139,1708783838738,-150.12393207,0.00019452,2]
[315051141,1708783838747,-500.0,0.00019452,2]
[315051143,1708783838757,-500.0,0.00019452,2]
[315051145,1708783838766,-500.0,0.00019452,2]
[315051147,1708783838776,-648.9,0.00019452,2]
[315051149,1708783838786,-898.5,0.00019452,2]
[315051151,1708783838795,-750.29,0.00019452,2]
[315051153,1708783838804,-500.0,0.00019452,2]
[315051155,1708783838813,-1110.63,0.00019452,2]
[315051157,1708783838822,-787.72519876,0.00019474,2]
[315051159,1708783838830,-166.666666,0.00019627,2]
[315051161,1708783838839,-372.35039873,0.00019726,2]
[315051163,1708783838848,-500.0,0.00019726,2]
[315051165,1708783838858,-1066.65,0.00019726,2]
[315051167,1708783838867,-1121.49,0.00019726,2]
[315051169,1708783838875,-500.0,0.00019726,2]
[315051171,1708783838884,-759.76,0.00019726,2]
[315051173,1708783838893,-500.0,0.00019726,2]
[315051175,1708783838902,-503.2,0.00019726,2]
[315051177,1708783838911,-461.955112,0.00019726,2]
[315051179,1708783838920,-500.0,0.00019726,2]
[315051194,1708783839043,-500.0,0.00019726,2]
[315051196,1708783839052,-500.0,0.00019726,2]
[315051197,1708783839061,-1277.27,0.00019726,2]
[315051198,1708783839070,-679.86,0.00019726,2]
[315051199,1708783839079,-957.17,0.00019726,2]
[315051200,1708783839088,-1414.76,0.00019726,2]
[315051201,1708783839098,-805.21,0.00019726,2]
[315051202,1708783839107,-689.87,0.00019726,2]
[315051203,1708783839117,-1229.28,0.00019726,2]
[315051204,1708783839126,-500.0,0.00019726,2]
[315051205,1708783839139,-581.26,0.00019726,2]
[315051206,1708783839148,-827.21,0.00019726,2]
[315051207,1708783839158,-500.0,0.00019726,2]
[315051208,1708783839168,-6875.25,0.00019726,2]
[315051209,1708783839179,-5957.41,0.00019726,2]
[315051210,1708783839188,-500.0,0.00019726,2]
[315051211,1708783839198,-500.0,0.00019726,2]
[315051212,1708783839208,-667.49,0.00019726,2]
[315051213,1708783839218,-523.04,0.00019726,2]
[315051214,1708783839229,-4184.82,0.00019726,2]
[315051215,1708783839238,-2974.12,0.00019726,2]
[315051216,1708783839247,-500.0,0.00019726,2]
[315051217,1708783839257,-3420.18,0.00019726,2]
[315051218,1708783839266,-1485.58,0.00019726,2]
[315051219,1708783839275,-1101.19,0.00019726,2]
[315051220,1708783839284,-500.0,0.00019726,2]
[315051221,1708783839294,-500.0,0.00019726,2]
[315051222,1708783839303,-648.9,0.00019726,2]
[315051223,1708783839312,-898.5,0.00019726,2]
[315051224,1708783839322,-750.29,0.00019726,2]
[315051225,1708783839331,-500.0,0.00019726,2]
[315051226,1708783839340,-1110.63,0.00019726,2]
[315051227,1708783839349,-1000.0,0.00019747,2]
[315051228,1708783839358,-1000.0,0.00019758,2]
[315051229,1708783839369,-1000.0,0.00019762,2]
[315051230,1708783839378,-1000.0,0.0001977,2]
[315051231,1708783839387,-1000.0,0.00019776,2]
[315051232,1708783839396,-1000.0,0.00019779,2]
[315051233,1708783839405,-1000.0,0.00019793,2]
[315051234,1708783839414,-1000.0,0.00019812,2]
[315051235,1708783839423,-1000.0,0.0001987,2]
[315051236,1708783839434,-1000.0,0.00019891,2]
[315051237,1708783839443,-24715.72913923,0.000199,2]
[315051238,1708783839453,-1000.0,0.00019902,2]
[315051239,1708783839462,-823.00791013,0.00019902,2]
[315051240,1708783839471,-1000.0,0.00019907,2]
[315051241,1708783839480,-1000.0,0.00019931,2]
[315051242,1708783839490,-1000.0,0.0001994,2]
[315051243,1708783839499,-1000.0,0.00019957,2]
[315051244,1708783839508,-1000.0,0.00019964,2]
[315051245,1708783839517,-1000.0,0.00019966,2]
[315051246,1708783839526,-1000.0,0.0001997,2]
[315051247,1708783839535,-1000.0,0.00019978,2]
[315051248,1708783839545,-155.00310006,0.0001999,2]
[315051249,1708783839555,-1000.0,0.00019996,2]
[315051250,1708783839564,-182.01718802,0.00019998,2]
[315051251,1708783839573,-2374.9139694,0.00019998,2]
[315051252,1708783839582,-588.19481873,0.00019998,2]
[315051253,1708783839592,-258.61058904,0.00019999,2]
[315051254,1708783839601,-1538905.62019962,0.0002,2]
[315051271,1708783841449,-1001.43023329,0.000199,2]
[315051272,1708783841461,-1823.33907989,0.000199,2]
[315051273,1708783841471,-2174.02744284,0.0002,2]
[315051275,1708783843292,-303.65045188,0.0001999,3]
[315051288,1708783846236,-281.4450939,0.00019999,2]
[315051290,1708783846245,-26353.87053305,0.0002,2]
[315051292,1708784219501,205.893706,0.00017978,2]
[315051294,1708784323182,155.25057702,0.0001812,2]
[315051295,1708784394401,863.6525713,0.00017595,2]
[315051297,1708784473789,1000.0,0.00021,21]
[315051298,1708784475421,1000.0,0.00021,21]
[315051299,1708784503376,9721.4760442,0.0001776,2]
[315051303,1708784540744,24900.0,0.00017871,2]
[315051305,1708784584107,155.87855261,0.00018108,2]
[315051308,1708784657703,1718.4169057,0.000182,2]
[315051309,1708784666179,273.79961368,0.000182,2]
[315051380,1708785038356,-704.04980982,0.0001821,2]
[315051381,1708785038366,-1273.12909398,0.00018211,2]
[315051382,1708785038376,-1163.58022563,0.000189,2]
[315051383,1708785038385,-474.36,0.00019168,3]
[315051384,1708785038395,-372.370727,0.00019176,2]
[315051385,1708785038404,-1189.66095109,0.00019177,2]
[315051386,1708785038414,-723.81,0.00019178,2]
[315051387,1708785038423,-3800.25,0.00019178,2]
[315051388,1708785038432,-500.0,0.00019178,2]
[315051389,1708785038442,-1469.37,0.00019178,2]
[315051390,1708785038452,-503.33303702,0.00019178,2]
[315051391,1708785038461,-646.47874491,0.00019178,2]
[315051392,1708785038476,-759.2,0.00019178,2]
[315051393,1708785038486,-500.0,0.00019178,2]
[315051394,1708785038495,-1018.08,0.00019178,2]
[315051395,1708785038507,-1126.84,0.00019178,2]
[315051396,1708785038518,-562.2583264,0.00019178,2]
[315051397,1708785038527,-500.0,0.00019178,2]
[315051398,1708785038537,-500.0,0.00019178,2]
[315051399,1708785038547,-502.29163787,0.00019178,2]
[315051400,1708785038556,-151.20673677,0.00019178,2]
[315051401,1708785038566,-500.0,0.00019178,2]
[315051402,1708785038575,-500.0,0.00019178,2]
[315051403,1708785038585,-500.0,0.00019178,2]
[315051404,1708785038595,-501.22711499,0.00019178,2]
[315051405,1708785038605,-500.0,0.00019178,2]
[315051406,1708785038615,-500.49581509,0.00019178,2]
[315051407,1708785038624,-500.0,0.00019178,2]
[315051408,1708785038634,-543.0771929,0.00019178,2]
[315051409,1708785038643,-501.38307201,0.00019178,2]
[315051410,1708785038653,-577.2719451,0.00019178,2]
[315051411,1708785038663,-500.0,0.00019178,2]
[315051412,1708785038674,-500.0,0.00019178,2]
[315051413,1708785038683,-500.0,0.00019178,2]
[315051414,1708785038693,-500.0,0.00019178,2]
[315051415,1708785038703,-500.0,0.00019178,2]
[315051416,1708785038713,-500.0,0.00019178,2]
[315051417,1708785038722,-500.0,0.00019178,2]
[315051418,1708785038732,-500.0,0.00019178,2]
[315051419,1708785038742,-177.06876316,0.00019178,2]
[315051420,1708785038751,-500.23580513,0.00019178,2]
[315051421,1708785038761,-500.0,0.00019178,2]
[315051422,1708785038771,-508.24,0.00019178,2]
[315051423,1708785038780,-258.37608365,0.00019178,2]
[315051424,1708785038789,-500.0,0.00019178,2]
[315051425,1708785038798,-500.0,0.00019178,2]
[315051426,1708785038808,-500.0,0.00019178,2]
[315051427,1708785038817,-500.0,0.00019178,2]
[315051428,1708785038826,-500.0,0.00019178,2]
[315051429,1708785038837,-500.0,0.00019178,2]
[315051430,1708785038846,-500.94649649,0.00019178,2]
[315051431,1708785038856,-500.0,0.00019178,2]
[315051432,1708785038865,-500.0,0.00019178,2]
[315051433,1708785038876,-500.0,0.00019178,2]
[315051434,1708785038886,-500.75121153,0.00019178,2]
[315051435,1708785038895,-500.0,0.00019178,2]
[315051436,1708785038904,-500.0,0.00019178,2]
[315051437,1708785038913,-500.0,0.00019178,2]
[315051438,1708785038923,-500.95156655,0.00019178,2]
[315051439,1708785038932,-500.0,0.00019178,2]
[315051440,1708785038941,-500.0,0.00019178,2]
[315051441,1708785038950,-500.0,0.00019178,2]
[315051442,1708785038958,-249.69840039,0.00019178,2]
[315051443,1708785038968,-500.0,0.00019178,2]
[315051444,1708785038977,-500.0,0.00019178,2]
[315051445,1708785038987,-500.0,0.00019178,2]
[315051446,1708785038997,-1168.13,0.00019178,2]
[315051447,1708785039006,-500.0,0.00019178,2]
[315051448,1708785039016,-500.0,0.00019178,2]
[315051449,1708785039025,-500.0,0.00019178,2]
[315051450,1708785039034,-307.43320476,0.00019178,2]
[315051451,1708785039043,-500.0,0.00019178,2]
[315051452,1708785039052,-1216.42,0.00019178,2]
[315051453,1708785039061,-500.0,0.00019178,2]
[315051454,1708785039070,-500.0,0.00019178,2]
[315051455,1708785039079,-500.0,0.00019178,2]
[315051456,1708785039088,-500.0,0.00019178,2]
[315051457,1708785039098,-858.36901513,0.00019178,2]
[315051458,1708785039107,-500.0,0.00019178,2]
[315051459,1708785039116,-501.62181897,0.00019178,2]
[315051460,1708785039125,-500.0,0.00019178,2]
[315051461,1708785039135,-500.0,0.00019178,2]
[315051462,1708785039144,-500.0,0.00019178,2]
[315051463,1708785039153,-596.20651397,0.00019178,2]
[315051464,1708785039163,-285.47079158,0.00019178,2]
[315051465,1708785039172,-500.74749425,0.00019178,2]
[315051466,1708785039182,-500.75886757,0.00019178,2]
[315051467,1708785039191,-500.0,0.00019178,2]
[315051468,1708785039201,-612.89728722,0.00019178,2]
[315051469,1708785039211,-500.0,0.00019178,2]
[315051470,1708785039220,-500.0,0.00019178,2]
[315051471,1708785039231,-501.25,0.00019178,2]
[315051472,1708785039241,-500.0,0.00019178,2]
[315051473,1708785039250,-500.84342992,0.00019178,2]
[315051474,1708785039259,-501.9076383,0.00019178,2]
[315051475,1708785039269,-500.0,0.00019178,2]
[315051476,1708785039279,-500.0,0.00019178,2]
[315051477,1708785039288,-500.0,0.00019178,2]
[315051478,1708785039298,-500.0,0.00019178,2]
[315051479,1708785039307,-500.0,0.00019178,2]
[315051480,1708785039317,-1224.05,0.00019178,2]
[315051481,1708785039327,-500.0,0.00019178,2]
[315051482,1708785039336,-500.0,0.00019178,2]
[315051483,1708785039346,-500.0,0.00019178,2]
[315051484,1708785039355,-651.54,0.00019178,2]
[315051485,1708785039366,-500.0,0.00019178,2]
[315051486,1708785039375,-581.88330222,0.00019178,2]
[315051487,1708785039384,-500.0,0.00019178,2]
[315051488,1708785039393,-1468.02,0.00019178,2]
[315051489,1708785039403,-500.0,0.00019178,2]
[315051490,1708785039413,-500.0,0.00019178,2]
[315051491,1708785039423,-500.0,0.00019178,2]
[315051492,1708785039432,-500.0,0.00019178,2]
[315051493,1708785039442,-750.48,0.00019178,2]
[315051494,1708785039451,-500.0,0.00019178,2]
[315051495,1708785039460,-500.0,0.00019178,2]
[315051496,1708785039470,-500.0,0.00019178,2]
[315051497,1708785039486,-614.65414153,0.00019178,2]
[315051498,1708785039496,-661.13,0.00019178,2]
[315051499,1708785039505,-833.74,0.00019178,2]
[315051500,1708785039517,-500.0,0.00019178,2]
[315051501,1708785039526,-472.99836782,0.00019178,2]
[315051502,1708785039536,-500.0,0.00019178,2]
[315051503,1708785039545,-500.0,0.00019178,2]
[315051504,1708785039555,-500.0,0.00019178,2]
[315051505,1708785039564,-500.0,0.00019178,2]
[315051506,1708785039574,-557.04,0.00019178,2]
[315051507,1708785039583,-6289.18,0.00019178,2]
[315051508,1708785039592,-500.0,0.00019178,2]
[315051509,1708785039601,-500.89136528,0.00019178,2]
[315051510,1708785039611,-500.0,0.00019178,2]
[315051511,1708785039621,-500.0,0.00019178,2]
[315051512,1708785039631,-500.0,0.00019178,2]
[315051513,1708785039640,-519.59807134,0.00019178,2]
[315051514,1708785039650,-500.66481967,0.00019178,2]
[315051515,1708785039660,-510.83557812,0.00019178,2]
[315051516,1708785039671,-500.0,0.00019178,2]
[315051517,1708785039681,-500.0,0.00019178,2]
[315051518,1708785039802,-500.92597094,0.00019178,2]
[315051519,1708785039813,-7110.91,0.00019178,2]
[315051520,1708785039822,-500.0,0.00019178,2]
[315051521,1708785039831,-500.0,0.00019178,2]
[315051522,1708785039840,-500.0,0.00019178,2]
[315051523,1708785039850,-500.0,0.00019178,2]
[315051524,1708785039860,-500.0,0.00019178,2]
[315051525,1708785039869,-501.06102034,0.00019178,2]
[315051526,1708785039878,-500.0,0.00019178,2]
[315051527,1708785039887,-500.0,0.00019178,2]
[315051528,1708785039897,-500.0,0.00019178,2]
[315051529,1708785039906,-500.0,0.00019178,2]
[315051530,1708785039917,-500.0,0.00019178,2]
[315051531,1708785039927,-521.26886401,0.00019178,2]
[315051532,1708785039936,-500.63179742,0.00019178,2]
[315051533,1708785039945,-500.90707381,0.00019178,2]
[315051534,1708785039954,-500.0,0.00019178,2]
[315051535,1708785039963,-500.0,0.00019178,2]
[315051536,1708785039973,-696.51,0.00019178,2]
[315051537,1708785039982,-500.0,0.00019178,2]
[315051538,1708785039991,-500.0,0.00019178,2]
[315051539,1708785040000,-500.0,0.00019178,2]
[315051540,1708785040009,-500.0,0.00019178,2]
[315051541,1708785040018,-682.73,0.00019178,2]
[315051542,1708785040027,-3220.97,0.00019178,2]
[315051543,1708785040036,-500.0,0.00019178,2]
[315051544,1708785040045,-500.0,0.00019178,2]
[315051545,1708785040054,-500.55055743,0.00019178,2]
[315051546,1708785040063,-500.0,0.00019178,2]
[315051547,1708785040072,-3939.77,0.00019178,2]
[315051548,1708785040080,-500.0,0.00019178,2]
[315051549,1708785040090,-500.0,0.00019178,2]
[315051550,1708785040098,-500.6498684,0.00019178,2]
[315051551,1708785040107,-500.0,0.00019178,2]
[315051552,1708785040117,-900.96,0.00019178,2]
[315051553,1708785040125,-500.35753757,0.00019178,2]
[315051554,1708785040134,-1120.6,0.00019178,2]
[315051555,1708785040143,-500.0,0.00019178,2]
[315051556,1708785040151,-500.0,0.00019178,2]
[315051557,1708785040161,-500.0,0.00019178,2]
[315051558,1708785040171,-501.03228653,0.00019178,2]
[315051559,1708785040180,-917.28,0.00019178,2]
[315051560,1708785040189,-500.0,0.00019178,2]
[315051561,1708785040198,-166.666666,0.00019178,2]
[315051562,1708785040207,-2191.32,0.00019326,3]
[315051563,1708785040216,-500.0,0.00019431,2]
[315051564,1708785040225,-550.31784742,0.00019431,2]
[315051565,1708785040234,-723.81,0.00019452,2]
[315051566,1708785040243,-3800.25,0.00019452,2]
[315051567,1708785040252,-500.0,0.00019452,2]
[315051568,1708785040261,-1469.37,0.00019452,2]
[315051569,1708785040269,-759.2,0.00019452,2]
[315051570,1708785040278,-1018.08,0.00019452,2]
[315051571,1708785040287,-1126.84,0.00019452,2]
[315051572,1708785040295,-500.0,0.00019452,2]
[315051573,1708785040304,-500.0,0.00019452,2]
[315051574,1708785040313,-500.0,0.00019452,2]
[315051575,1708785040322,-500.71233704,0.00019452,2]
[315051576,1708785040330,-389.05948452,0.00019452,2]
[315051577,1708785040339,-529.3064742,0.00019452,2]
[315051578,1708785040348,-500.0,0.00019452,2]
[315051579,1708785040357,-508.24,0.00019452,2]
[315051580,1708785040366,-500.0,0.00019452,2]
[315051581,1708785040375,-500.0,0.00019452,2]
[315051582,1708785040384,-500.0,0.00019452,2]
[315051583,1708785040393,-500.0,0.00019452,2]
[315051584,1708785040401,-500.0,0.00019452,2]
[315051585,1708785040410,-549.33868893,0.00019452,2]
[315051586,1708785040420,-500.0,0.00019452,2]
[315051587,1708785040429,-500.0,0.00019452,2]
[315051588,1708785040438,-500.0,0.00019452,2]
[315051589,1708785040447,-1168.13,0.00019452,2]
[315051590,1708785040456,-500.0,0.00019452,2]
[315051591,1708785040465,-1216.42,0.00019452,2]
[315051592,1708785040478,-500.0,0.00019452,2]
[315051593,1708785040487,-500.0,0.00019452,2]
[315051594,1708785040496,-501.25,0.00019452,2]
[315051596,1708785040505,-500.0,0.00019452,2]
[315051597,1708785040514,-1224.05,0.00019452,2]
[315051598,1708785040523,-651.54,0.00019452,2]
[315051599,1708785040531,-1468.02,0.00019452,2]
[315051600,1708785040540,-750.48,0.00019452,2]
[315051601,1708785040549,-500.0,0.00019452,2]
[315051602,1708785040560,-460.37063266,0.00019452,2]
[315051603,1708785040569,-661.13,0.00019452,2]
[315051604,1708785040578,-833.74,0.00019452,2]
[315051605,1708785040586,-310.0,0.00019452,2]
[315051606,1708785040597,-500.0,0.00019452,2]
[315051607,1708785040606,-557.04,0.00019452,2]
[315051608,1708785040615,-6289.18,0.00019452,2]
[315051609,1708785040624,-644.04663569,0.00019452,2]
[315051610,1708785040633,-500.0,0.00019452,2]
[315051611,1708785040643,-7110.91,0.00019452,2]
[315051612,1708785040652,-500.0,0.00019452,2]
[315051613,1708785040661,-500.0,0.00019452,2]
[315051614,1708785040673,-500.0,0.00019452,2]
[315051615,1708785040683,-500.0,0.00019452,2]
[315051616,1708785040692,-151.25262955,0.00019452,2]
[315051617,1708785040703,-696.51,0.00019452,2]
[315051618,1708785040713,-500.0,0.00019452,2]
[315051619,1708785040722,-682.73,0.00019452,2]
[315051620,1708785040731,-3220.97,0.00019452,2]
[315051621,1708785040741,-500.0,0.00019452,2]
[315051622,1708785040750,-500.0,0.00019452,2]
[315051623,1708785040759,-3939.77,0.00019452,2]
[315051624,1708785040769,-500.98655187,0.00019452,2]
[315051625,1708785040779,-900.96,0.00019452,2]
[315051626,1708785040788,-1120.6,0.00019452,2]
[315051627,1708785040797,-500.0,0.00019452,2]
[315051628,1708785040806,-917.28,0.00019452,2]
[315051629,1708785040815,-500.0,0.00019452,2]
[315051631,1708785040824,-787.72519876,0.00019499,2]
[315051632,1708785040834,-17857.12409552,0.00019626,2]
[315051633,1708785040843,-166.666666,0.00019627,2]
[315051634,1708785040853,-233.1870592,0.000197,2]
[315051636,1708785040862,-153.0,0.000197,2]
[315051637,1708785040871,-163.0923202,0.000197,2]
[315051638,1708785040881,-153.0,0.000197,2]
[315051639,1708785040890,-153.0,0.000197,2]
[315051640,1708785040899,-153.0,0.000197,2]
[315051641,1708785040909,-153.0,0.000197,2]
[315051642,1708785040920,-153.0,0.000197,2]
[315051643,1708785040929,-153.0,0.000197,2]
[315051644,1708785040938,-153.0,0.000197,2]
[315051645,1708785040948,-153.0,0.000197,2]
[315051646,1708785040957,-153.0,0.000197,2]
[315051647,1708785040966,-153.0,0.000197,2]
[315051648,1708785040976,-153.0,0.000197,2]
[315051649,1708785040986,-153.0,0.000197,2]
[315051650,1708785040995,-153.0,0.000197,2]
[315051651,1708785041004,-723.81,0.00019726,2]
[315051652,1708785041014,-3800.25,0.00019726,2]
[315051653,1708785041023,-1469.37,0.00019726,2]
[315051654,1708785041032,-759.2,0.00019726,2]
[315051655,1708785041042,-1018.08,0.00019726,2]
[315051656,1708785041051,-1126.84,0.00019726,2]
[315051657,1708785041060,-500.0,0.00019726,2]
[315051658,1708785041070,-508.24,0.00019726,2]
[315051659,1708785041080,-500.0,0.00019726,2]
[315051660,1708785041089,-500.0,0.00019726,2]
[315051661,1708785041099,-573.64,0.00019726,2]
[315051662,1708785041108,-500.0,0.00019726,2]
[315051663,1708785041118,-1168.13,0.00019726,2]
[315051664,1708785041127,-1216.42,0.00019726,2]
[315051665,1708785041137,-500.0,0.00019726,2]
[315051666,1708785041146,-500.0,0.00019726,2]
[315051667,1708785041156,-501.25,0.00019726,2]
[315051668,1708785041167,-441.02098798,0.00019726,2]
[315051669,1708785041176,-1224.05,0.00019726,2]
[315051670,1708785041186,-651.54,0.00019726,2]
[315051671,1708785041195,-1468.02,0.00019726,2]
[315051672,1708785041204,-750.48,0.00019726,2]
[315051673,1708785041215,-531.47039873,0.00019726,2]
[315051674,1708785041224,-661.13,0.00019726,2]
[315051675,1708785041234,-833.74,0.00019726,2]
[315051676,1708785041243,-500.0,0.00019726,2]
[315051677,1708785041252,-557.04,0.00019726,2]
[315051678,1708785041261,-6289.18,0.00019726,2]
[315051679,1708785041270,-516.00800401,0.00019726,2]
[315051680,1708785041280,-7110.91,0.00019726,2]
[315051681,1708785041289,-500.0,0.00019726,2]
[315051682,1708785041299,-500.0,0.00019726,2]
[315051683,1708785041309,-500.0,0.00019726,2]
[315051684,1708785041318,-500.0,0.00019726,2]
[315051685,1708785041327,-696.51,0.00019726,2]
[315051686,1708785041337,-500.0,0.00019726,2]
[315051687,1708785041346,-682.73,0.00019726,2]
[315051688,1708785041356,-3220.97,0.00019726,2]
[315051689,1708785041365,-500.0,0.00019726,2]
[315051690,1708785041375,-3939.77,0.00019726,2]
[315051691,1708785041384,-900.96,0.00019726,2]
[315051692,1708785041394,-1120.6,0.00019726,2]
[315051693,1708785041404,-917.28,0.00019726,2]
[315051694,1708785041415,-153.0,0.000198,2]
[315051695,1708785041425,-153.0,0.000198,2]
[315051696,1708785041434,-2542.29238188,0.000199,2]
[315051697,1708785041443,-258.61058904,0.00019968,2]
[315051698,1708785041452,-182.01718802,0.00019968,2]
[315051699,1708785041461,-2374.9139694,0.00019968,2]
[315051700,1708785041471,-588.19481873,0.00019969,2]
[315051701,1708785041485,-1433779.78273229,0.0002,2]
[315051702,1708785041545,-141206.40603342,0.0002,2]
[315051704,1708785041625,-724.00937328,0.0002,2]
[315051722,1708785043388,-87205.36549317,0.0002,2]
[315051724,1708785043399,-15288.66351726,0.0002,2]
[315051726,1708785043447,-38619.42005875,0.0002,2]
[315051737,1708785046587,-500.0,0.00019178,2]
[315051738,1708785046598,-500.0,0.00019452,2]
[315051739,1708785046607,-94.6,0.00019726,2]
[315051740,1708785046619,-233.34432442,0.00019726,2]
[315051741,1708785046629,-861.31278405,0.0002,2]
[315051746,1708785246863,20966.0902524,0.00018174,2]
[315051767,1708785588635,-295.40221259,0.00018885,2]
[315051768,1708785588658,-273.79961368,0.00018886,2]
[315051769,1708785588682,-4697.79543124,0.00018886,2]
[315051770,1708785588703,-552.00274249,0.00018887,2]
[315051795,1708786210828,22671.6716626,0.00017975,2]
[315051814,1708786232665,-281.28625655,0.000184,2]
[315051816,1708786232674,-289.43215172,0.00018401,2]
[315051820,1708786232700,-363.46843728,0.00018401,2]
[315051822,1708786232710,-704.04980982,0.00018401,2]
[315051824,1708786232719,-240.45331763,0.00018409,2]
[315051826,1708786232728,-151.62583838,0.00018417,2]
[315051828,1708786232737,-1466.22134132,0.000189,2]
[315051830,1708786232746,-379.22532043,0.00019,2]
[315051881,1708786238576,-2495.496026,0.00019,2]
[315051882,1708786238588,-658.93879695,0.00019,2]
[315051883,1708786238637,-808.40413656,0.00019,2]
[315051884,1708786238646,-277.17644568,0.00019176,2]
[315051885,1708786238658,-461.97442065,0.00019176,2]
[315051886,1708786238667,-300.0,0.00019176,2]
[315051887,1708786238676,-271.51772226,0.00019177,2]
[315051888,1708786238688,-273.65515252,0.00019177,2]
[315051889,1708786238696,-500.0,0.00019178,2]
[315051890,1708786238705,-500.0,0.00019178,2]
[315051891,1708786238715,-500.0,0.00019178,2]
[315051892,1708786238725,-500.0,0.00019178,2]
[315051893,1708786238735,-500.0,0.00019178,2]
[315051894,1708786238746,-1119.45,0.00019178,2]
[315051895,1708786238755,-135.27715335,0.00019178,2]
[315051896,1708786238768,-259.9792,0.00019178,2]
[315051897,1708786238780,-104.74364665,0.00019178,2]
[315051898,1708786238789,-460.37063266,0.00019178,2]
[315051899,1708786238799,-1226.16,0.00019178,2]
[315051900,1708786238809,-500.0,0.00019178,2]
[315051901,1708786238818,-242.17076754,0.00019178,2]
[315051902,1708786238828,-310.0,0.00019178,2]
[315051903,1708786238837,-644.04663569,0.00019178,2]
[315051904,1708786238848,-500.0,0.00019178,2]
[315051905,1708786238858,-500.63179742,0.00019178,2]
[315051906,1708786238867,-500.0,0.00019178,2]
[315051907,1708786238877,-500.0,0.00019178,2]
[315051908,1708786238886,-500.0,0.00019178,2]
[315051909,1708786238895,-500.0,0.00019178,2]
[315051910,1708786238904,-500.0,0.00019178,2]
[315051911,1708786238915,-500.0,0.00019178,2]
[315051912,1708786238927,-500.90707381,0.00019178,2]
[315051913,1708786238938,-500.0,0.00019178,2]
[315051914,1708786238947,-550.31784742,0.00019178,2]
[315051915,1708786238956,-500.55055743,0.00019178,2]
[315051916,1708786238965,-500.6498684,0.00019178,2]
[315051917,1708786238974,-500.0,0.00019178,2]
[315051918,1708786238983,-500.0,0.00019178,2]
[315051919,1708786238992,-501.03228653,0.00019178,2]
[315051920,1708786239001,-500.0,0.00019178,2]
[315051921,1708786239010,-500.0,0.00019178,2]
[315051922,1708786239019,-1271.74,0.00019178,2]
[315051923,1708786239028,-500.0,0.00019178,2]
[315051924,1708786239037,-500.0,0.00019178,2]
[315051925,1708786239046,-655.65,0.00019178,2]
[315051926,1708786239055,-500.0,0.00019178,2]
[315051927,1708786239063,-500.0,0.00019178,2]
[315051928,1708786239073,-1406.85,0.00019178,2]
[315051929,1708786239082,-500.0,0.00019178,2]
[315051930,1708786239091,-500.0,0.00019178,2]